Cogmind - Beta 10.1 @@@ ROGUE MODE // 2020.10.22 @ 20:54:40 Player: aperiodic Result: Destroyed by GM-J5T with Makeshift Laser Performance ------------- Evolutions (0) 0 Regions Visited (3) 600 Robots Destroyed (37) 185 Value Destroyed (370) 370 Prototype IDs (28) 560 Alien Tech Used (0) 0 Bonus (-1044) -1044 TOTAL SCORE: 671 Bonus ------- Follower Combat Kills 60 Aligned with FarCom 300 Friendly Fire -1404 Cogmind --------- Core Integrity 0/250 Matter 255/300 Energy 100/100 System Corruption 3% Temperature Cool (9) Movement Core (50) Location -10/Exiles Parts ------- > --- POWER (1) -------- (None) > --- PROPULSION (2) --- (None) > --- UTILITY (2) ------ (None) > --- WEAPON (2) ------- Light Assault Rifle Light Assault Rifle > --- INVENTORY (4) ---- Improved Treads EM Pulse Gun Medium Laser Rocket Launcher Peak State ------------ > --- POWER ------------ Light Neutrino Core > --- PROPULSION ------- Improved Treads Improved Treads > --- UTILITY ---------- Improved Heat Sink Improved Heat Sink > --- WEAPON ----------- YOLO Cannon > --- INVENTORY -------- Improved Treads Latent Energy Streamer Light Assault Rifle Rocket Launcher [Rating: 38] Favorites ----------- Power Ion Engine Engine Ion Engine Power Core Light Neutrino Core Propulsion Light Treads Treads Light Treads Leg Advanced Myomer Leg Wheel Wheel Utility High-capacity Storage Unit Device Improved Heat Sink Storage High-capacity Storage Unit Hackware EX Chip 2 Weapon Assault Rifle Energy Gun Small Laser Energy Cannon YOLO Cannon Ballistic Gun Assault Rifle Build | -11 -10 -10 -10 ------- Run | Scr Mat Min Exi Slots Evolved . | . . . . Power . | . . . . Propulsion . | . . . . Utility . | . . . . Weapon . | . . . . Parts Attached 41 | 9 6 1 25 Power 5 | 1 . . 4 Engine 3 | 1 . . 2 Core 2 | . . . 2 Reactor . | . . . . Propulsion 11 | 3 2 . 6 Treads 8 | 1 2 . 5 Leg 1 | . . . 1 Wheel 2 | 2 . . . Hover . | . . . . Flight . | . . . . Utility 12 | 2 4 . 6 Device 3 | 1 . . 2 Storage 8 | 1 4 . 3 Processor . | . . . . Hackware 1 | . . . 1 Protection . | . . . . Artifact . | . . . . Weapon 13 | 3 . 1 9 Energy Gun 2 | 2 . . . Energy Cannon 3 | . . . 3 Ballistic Gun 8 | 1 . 1 6 Ballistic Cannon . | . . . . Launcher . | . . . . Special Weapon . | . . . . Impact Weapon . | . . . . Slashing Weapon . | . . . . Piercing Weapon . | . . . . Special Melee Weapon . | . . . . Unidentified Prototypes 2 | . . . 2 Parts Lost 11 | . 1 . 10 Power 1 | . . . 1 Propulsion 3 | . . . 3 Utility 2 | . . . 2 Weapon 5 | . 1 . 4 Highest Loss Streak 4 | . 1 . 4 Average Slot Usage (%) 90 | . 92 97 82 Engine 12 | . 14 14 9 Core 1 | . . . 3 Treads 25 | . 27 28 22 Device 3 | . 4 . 6 Storage 21 | . 23 28 13 Energy Gun 1 | . 7 . . Energy Cannon 1 | . . . 3 Ballistic Gun 20 | . 14 25 20 Naked Turns . | . . . . Heaviest Build 97 | 13 72 72 97 Greatest Support 46 | 26 40 40 46 Greatest Overweight (x) 3 | . 1 1 3 Average Overweight (x) . | . . 1 . Largest Inventory Capacity 24 | 6 20 20 24 Average Capacity 16 | 5 14 20 16 Most Carried 22 | 5 15 18 22 Average Carried 13 | 3 9 17 13 Final Capacity 20 | 6 20 20 4 Final Carried 18 | 4 15 18 4 Class Distribution -------------------- 75% | Hauler-Mutant 24% | Mutant Dominant Class ---------------- Hauler-Mutant | -10/Materials Hauler-Mutant | -10/Mines Hauler-Mutant | -10/Exiles Resources | -11 -10 -10 -10 ----------- Run | Scr Mat Min Exi Matter Collected 1175 | 263 400 107 405 Remotely . | . . . . Salvage Created 1019 | 29 608 84 298 Parts 77 | 3 40 16 18 Haulers Intercepted 2 | . 2 . . Recyclers Shooed . | . . . . Parts Field Recycled . | . . . . Retrieved Matter . | . . . . Parts Self-Destructed . | . . . . Prevented . | . . . . Kills | -11 -10 -10 -10 ------- Run | Scr Mat Min Exi Combat Hostiles Destroyed 14 | . 11 2 1 Guns 14 | . 11 2 1 Classes Destroyed 12 | 1 7 1 3 Worker 1 | . 1 . . Builder 1 | . . 1 . Tunneler 3 | 1 . 2 . Hauler 2 | . 2 . . Recycler 2 | . 2 . . Operator 1 | . 1 . . Turret 1 | . . . 1 Watcher 1 | . 1 . . Swarmer 8 | . 6 2 . Grunt 5 | . 5 . . Zionite 3 | . . . 3 Assembled 7 | . . . 7 Best Kill Streak 5 | 1 5 2 3 Combat Bots Only 3 | . 3 2 1 Max Kills in Single Turn 6 | 1 2 1 6 Gunslinging 1 | . 1 . . Exploded . | . . . . Melee . | . . . . Uniques/NPCs Destroyed 2 | . . . 2 EX-HEX (-10/Exiles) 8R-AWN (-10/Exiles) Combat | -11 -10 -10 -10 -------- Run | Scr Mat Min Exi Damage Taken 2078 | . 341 150 1587 Core 262 | . 84 6 172 Absorbed by Shields . | . . . . Core Remaining (%) 100 | 100 . . . Volleys Fired 128 | 1 69 9 49 Largest 2 | 2 2 2 2 Hottest 100 | 60 60 40 100 Shots Fired 211 | 2 105 18 86 Gun 204 | 2 105 18 79 Cannon 7 | . . . 7 Launcher . | . . . . Special . | . . . . Kinetic 167 | 1 69 18 79 Thermal 43 | 1 36 . 6 Explosive . | . . . . Electromagnetic 1 | . . . 1 Robot Hit Streak 21 | 2 21 3 13 Robot Miss Streak 5 | . 5 1 2 Penetration Max . | . . . . Secondary Targets 1 | . 1 . . Max Gunslinging Chain 1 | . 1 . . Shots Hit Robots 155 | 2 76 8 69 Core Hits 61 | 1 30 4 26 Critical Hits 1 | . . . 1 Critical Kills . | . . . . Critical Parts Destroyed 1 | . . . 1 Melee Attacks . | . . . . Impact . | . . . . Slashing . | . . . . Piercing . | . . . . Sneak Attacks . | . . . . Combat Hostiles . | . . . . Follow-up Attacks . | . . . . Damage Inflicted 3465 | 26 935 108 2396 Guns 2004 | 26 935 87 956 Cannons 394 | . . . 394 Explosions 1046 | . . . 1046 Melee . | . . . . Ramming 21 | . . 21 . Kinetic 1663 | 15 605 87 956 Thermal 1105 | 11 330 . 764 Explosive . | . . . . Electromagnetic 676 | . . . 676 Impact . | . . . . Slashing . | . . . . Piercing . | . . . . Highest Corruption 3 | . . . 3 Average Corruption 3 | . . . 3 Corruption Purged . | . . . . Effects 16 | . . . 16 Message Errors 1 | . . . 1 Matter Fused 5 | . . . 5 Heat Flow Errors 4 | . . . 4 Data Loss (minor) 1 | . . . 1 Targeting Errors 4 | . . . 4 Weapon Failures 1 | . . . 1 Overload Shots . | . . . . Overflow Damage 168 | . . . 168 Projectiles 46 | . . . 46 Explosions 122 | . . . 122 Melee . | . . . . Knockbacks . | . . . . Impact . | . . . . Kinetic . | . . . . Secondary . | . . . . Self-Inflicted Damage 140 | . . . 140 Shots 2 | . . . 2 Rammed 3 | . . 3 . Targets Rammed 4 | . . 4 . Kicked . | . . . . Crushed 1 | . . 1 . Highest Temperature 191 | . 72 . 191 Average Temperature 32 | . 39 . 29 Received Heat Transfer 141 | . 132 . 9 Siege Activations . | . . . . Robots Corrupted 1 | . . . 1 Combat Hostiles . | . . . . Parts Fried . | . . . . Impact Corruptions . | . . . . Robots Melted . | . . . . Combat Hostiles . | . . . . Parts Melted 4 | . 1 . 3 Heat Transferred 1415 | 25 750 . 640 Parts Sabotaged . | . . . . Parts Stolen . | . . . . Parts Stripped . | . . . . Power Chain Reactions . | . . . . Missiles Intercepted . | . . . . Latent Energy Used 200 | . . . 200 LE Corruption 3 | . . . 3 Alert | -11 -10 -10 -10 ------- Run | Scr Mat Min Exi Peak Influence 208 | 5 208 55 . Initial 4 | . 3 4 . Average 52 | . 98 21 . Maximum Alert Level 1 | . 1 . . Low Security (%) 99 | 100 99 100 . Level 1 . | . . . . Level 2 . | . . . . Level 3 . | . . . . Level 4 . | . . . . Level 5 . | . . . . High Security . | . . . . Max Security . | . . . . Squads Dispatched 2 | . 2 . . Investigation 1 | . 1 . . Extermination . | . . . . Reinforcement 1 | . 1 . . Assault . | . . . . Garrison . | . . . . Intercept . | . . . . Construction Impeded . | . . . . Haulers Reinforced . | . . . . Stealth | -11 -10 -10 -10 --------- Run | Scr Mat Min Exi Distress Signals 2 | . 2 . . Communications Jammed . | . . . . Distress Signals . | . . . . Times Spotted 41 | . 18 10 13 Peak Tracking Total 5 | . 4 3 5 Tactical Retreats 5 | . . 2 3 Traps | -11 -10 -10 -10 ------- Run | Scr Mat Min Exi Traps Triggered . | . . . . Indirectly . | . . . . Trap Hack Attempts . | . . . . Triggered . | . . . . Disarmed . | . . . . Reprogrammed . | . . . . Reused . | . . . . Traps Extracted . | . . . . Installed . | . . . . Triggered . | . . . . Machines | -11 -10 -10 -10 ---------- Run | Scr Mat Min Exi Machines Disabled 12 | . . . 12 Max in Single Turn 3 | . . . 3 Machines Sabotaged . | . . . . Garrisons Compromised . | . . . . Overloaded Fab Kills . | . . . . Fab Network Shutdowns . | . . . . Hacking | -11 -10 -10 -10 --------- Run | Scr Mat Min Exi Machines Accessed 4 | . 2 1 1 Terminals 3 | . 2 1 . Fabricators . | . . . . Repair Stations . | . . . . Recycling Units . | . . . . Scanalyzers . | . . . . Garrison Access . | . . . . Total Hacks 8 | . 4 3 1 Successful 5 | . 3 1 1 Failed 3 | . 1 2 . Catastrophic . | . . . . Database Lockouts . | . . . . Manual 8 | . 4 3 1 Terminals 7 | . 4 3 . Fabricators . | . . . . Repair Stations . | . . . . Recycling Units . | . . . . Scanalyzers . | . . . . Garrison Access . | . . . . Terminal Hacks 4 | . 2 1 1 Prototype ID Bank 2 | . 1 1 . Hauler Manifests 1 | . 1 . . EX-Prototype ID Bank 1 | . . . 1 Fabricator Hacks . | . . . . Repair Station Hacks . | . . . . Recycling Unit Hacks . | . . . . Scanalyzer . | . . . . Garrison Access Hacks . | . . . . Unauthorized Hacks 1 | . 1 . . Terminals 1 | . 1 . . Botnet 1 | . 1 . . Fabricators . | . . . . Repair Stations . | . . . . Recycling Units . | . . . . Scanalyzers . | . . . . Garrison Access . | . . . . Data Cores Recovered 1 | . 1 . . Used 1 | . 1 . . Hacking Detections 3 | . 2 1 . Full Trace Events . | . . . . Feedback Events . | . . . . Feedback Blocked . | . . . . Robot Schematics Acquired . | . . . . Robots Built . | . . . . Matter . | . . . . Time . | . . . . Total Robot Build Rating . | . . . . Part Schematics Acquired . | . . . . Parts Built . | . . . . Matter . | . . . . Time . | . . . . Total Part Build Rating . | . . . . Parts Repaired . | . . . . Time . | . . . . Parts Recycled . | . . . . Recycled Matter . | . . . . Retrieved Matter . | . . . . Retrieved Components . | . . . . Parts Scanalyzed . | . . . . Part Schematics Acquired . | . . . . Parts Damaged . | . . . . Bothacking | -11 -10 -10 -10 ------------ Run | Scr Mat Min Exi Used RIF Installer . | . . . . Robots Hacked . | . . . . Non-combat . | . . . . Combat . | . . . . Robot Hacks Applied . | . . . . Relay Couplers Released . | . . . . Robots Rewired . | . . . . Allies Hacked . | . . . . Hacks Repelled . | . . . . Allies | -11 -10 -10 -10 -------- Run | Scr Mat Min Exi Total Allies 3 | . . 3 . Largest Group 3 | . . 3 2 Highest-Rated Group 40 | . . 40 32 Highest-Rated Ally 16 | . . 16 16 Total Orders . | . . . . Ally Attacks 14 | . . 7 7 Total Damage 112 | . . 79 33 Kills 2 | . . 2 . Allies Corrupted . | . . . . Allies Melted . | . . . . Intel | -11 -10 -10 -10 ------- Run | Scr Mat Min Exi Robot Analysis Total . | . . . . Derelict Logs Recovered 1 | . . 1 . Drone Launches . | . . . . Drone Recoveries . | . . . . Exploration | -11 -10 -10 -10 ------------- Run | Scr Mat Min Exi Turns Passed 3426 | 64 866 1188 1308 Spaces Moved 1695 | 48 374 635 638 Core 83 | 15 . . 68 Treads 1556 | 7 346 635 568 Legs 2 | . . . 2 Wheels 54 | 26 28 . . Hover . | . . . . Flight . | . . . . Fastest Speed 50 | 50 90 180 50 Average Speed 169 | 87 165 180 168 Slowest Speed 220 | 160 180 180 220 Overloaded Moves . | . . . . Propulsion Burnouts . | . . . . Robots Hopped . | . . . . Cave-ins Triggered . | . . . . Exploration Rate (%) 56 | 4 47 98 75 Regions Visited 3 Branch Regions 2 Pre-discovered Areas 1 | . . 1 . Known Exits Taken . | . . . . Unknown Exits Taken 3 | 1 1 1 . Scrap Searched 2 | . . 2 . Spaces Dug . | . . . . Terrain Destroyed 68 | . . . 68 Melee . | . . . . Projectile 3 | . . . 3 AOE 65 | . . . 65 Terrain Rammed . | . . . . Walls Destroyed . | . . . . Machines Disabled . | . . . . Actions | -11 -10 -10 -10 --------- Run | Scr Mat Min Exi Total 2028 | 67 514 661 786 Wait 62 | . 46 9 7 Move 1692 | 47 373 634 638 Hop . | . . . . Pick Up 73 | 8 15 4 46 Fast Attach 7 | 3 1 . 3 Attach 21 | 6 . 1 14 Detach 4 | 2 . . 2 Swap 13 | . 5 . 8 Drop 24 | . 5 . 19 Fire 128 | 1 69 9 49 Melee . | . . . . Ram . | . . . . Kick . | . . . . Crush 4 | . . 4 . Escape Stasis . | . . . . Rewire . | . . . . Trap . | . . . . Miscellaneous . | . . . . Route ------- -11/Scrapyard -10/Materials -10/Mines (discovered 3 exits: [*Mat x2] / *Exi) -10/Exiles (discovered 1 exit: [*Min]) History --------- Turn | Location | Event 12 | -11/Scrapyard | Discovered new exit (range 14) 65 | -11/Scrapyard | Entered Materials 193 | -10/Materials | Met 8R-AWN 312 | -10/Materials | Build established: Mutant 648 | -10/Materials | Discovered new exit (range 9) 753 | -10/Materials | Build established: Hauler-Mutant 931 | -10/Materials | Entered Mines 933 | -10/Mines | Followed 8R-AWN into the Mines 957 | -10/Mines | Discovered new exit (range 15) 985 | -10/Mines | Received a Rocket Launcher from a helpful Derelict 1198 | -10/Mines | Discovered new exit (range 5) 1323 | -10/Mines | A weapon hastily lodged in a ceiling crevice suddenly fell to the ground 1516 | -10/Mines | Discovered new exit (range 15) 1555 | -10/Mines | Assisted by bots powering up and referring to "LRC-V3" 1852 | -10/Mines | Learned location of Mines (-9) 2119 | -10/Mines | Entered Exiles 2119 | -10/Exiles | Accompanied by 2 allies 2163 | -10/Exiles | Welcomed by 8R-AWN 2193 | -10/Exiles | Met EX-HEX 2263 | -10/Exiles | Met EX-DEC 2428 | -10/Exiles | Met EX-BIN 2453 | -10/Exiles | Aligned with FarCom system 2455 | -10/Exiles | Given EX-Vault access code 2497 | -10/Exiles | Opened EX-Vault 2599 | -10/Exiles | Found PSU Rigger 2602 | -10/Exiles | Found YOLO Cannon 2608 | -10/Exiles | Found Latent Energy Streamer 2644 | -10/Exiles | Warned to stay clear of 0b10 Research branches 2725 | -10/Exiles | Learned about 8R-AWN's background 2761 | -10/Exiles | Attacked by the Exiles 2763 | -10/Exiles | Destroyed EX-HEX 2797 | -10/Exiles | Core integrity fell below 50% 2869 | -10/Exiles | Core integrity fell below 20% 2872 | -10/Exiles | Destroyed 8R-AWN 2895 | -10/Exiles | Lost 3 parts (1p1n1w) 3207 | -10/Exiles | Discovered new exit (range 14) 3304 | -10/Exiles | Build established: Mutant 3386 | -10/Exiles | Lost 4 parts (1n2u1w) 3427 | -10/Exiles | Destroyed by GM-J5T with Makeshift Laser Last Messages --------------- 03351_ Imp. Treads destroyed. 03351_ Destroyed Imp. Treads. 03351_ Destroyed Aluminum Leg. 03355_ QR-F5N(z) destroyed. 03355_ YOLO Cannon destroyed. 03355_ Destroyed YOLO Cannon. 03355_ Imp. Heat Sink destroyed. 03355_ Destroyed Imp. Heat Sink. 03367_ AM-PHS destroyed. 03371_ Acquired 14 matter. 03374_ Acquired Mak. Hacking Suite. 03390_ Dropped Lgt. Neutrino Core. 03409_ Acquired Lgt. Assault Rifle. 03411_ System corrupted: Heat flow error (+216). 03412_ Dropped Latent Energy Streamer. 03413_ Acquired EM Pulse Gun. 03415_ Dropped Mak. Hacking Suite. 03415_ Acquired Med. Laser. 03423_ System corrupted: Lgt. Assault Rifle targeting data glitched. [Achievement: Overachiever] Map ----- +----------------------------------------------------+ | """#???????## """"???????????????????? | | ?????????# """#???????????????????? | | ?????????#" "X" """????????????????????? | | "#????????#" """ #???????????????????? | | ""?????????#" """""""""#???????????????????? | | "?????????##" ###########???????????????????? | | #????????##"" #??????????? #????????????????? | | ###?######"" #??????????# ????????????????? | | #"###""""""" ##?????????? ##??????????????? | | """""" " "" ##?######### ##?????????????? | | "" """ " ###;#""" "" ##????????????? | | " " " " "##???????????? | | #???????????? | | #???????????? | | "a ##??????????# | | ###???????## | | ! ##??????#" | | """""" !!! #?????##" | | ######""" !!% ! ####?### | | ""##????#####""" !!! != #?# | | """##?????????##""" ! *= =! ### | | """##???????????#"""" !/[!! ### | | ""#???????????##"" !!!* ] | | ########??####"""" ! ! = # | | ## ####""" ""# | | """" @ """## | | ######? | | ##?????? | | z " ##??????? | | " "" "" "#???????? | | ""## ##""" " " ""# %%%%%%% ##???????? | | ""#### ######""" """# #????????? | | """"##??# #????###""""## ;;;; #????????? | | """#???# #??????######## ##????????? | | ""##???! ?????????????#### ###?????????? | | * """##???#" ????????????????####???????????? | | ##????#" ??????????????????????????????? | | ##?????#!!""!??????????????????????????????? | | #??????#######?????????????????????????????? | | # ##??????????????????????????????????????????? | | ## #???????????????????????????????????????????? | | ?# #???????????????????????????????????????????? | | ?# #???????????????????????????????????????????? | | ## ! ##??????????????????????????????????????????? | | # ##?????????????????????????????????????????? | | = #?????????????????????????????????????????? | | #?????????????????????????????????????????? | | #?????????????????????????????????????????? | | #?????????????????????????????????????????? | | #?????????????????????????????????????????? | +----------------------------------------------------+ Best States ------------- Heat Dissipation 53 Energy Generation 19 Energy Capacity 250 Matter Stores 300 Matter Capacity 300 Sight Range 16 Terrain Scan Range 16 Terrain Scan Density 10 Evasion (%) 50 Recoil Reduction 2 Item Schematics ----------------- None Robot Schematics ------------------ None Fabricated ------------ Nothing Alien Tech Used ----------------- None Achievements -------------- Collateral Damage Overachiever Challenges ------------ None Game ------ Seed PulseHellfireStreamer Manual? 0 Play Time 00:45:13 Cumulative 132.0 hours Start 2020.10.20 @ 16:59:57 End 2020.10.22 @ 20:54:40 Sessions 5 Manual Loads 0 Difficulty Rogue Special Mode None Game No. 58 Rogue 54 Adventurer 4 Explorer 0 Win Type - Total 1 Types 1/0/0/0/0/0/0/0/0 Lore% 52 Gallery% 65 Achievement% 50 Wizard Run 0 Options --------- ASCII 1 Keyboard 0 Movement Arrows Keybinds 0 Fullscreen 1 Font 18/SmallcapsGlow Map View 76x50 Tactical HUD 1 Map Filters NONE Filters NONE Steam 1 RUN: b52ae0b0-7608-4eec-b2ef-5ac3a501dd0e